[Event "FRA-ch Youth 2017"]
[Site "Belfort"]
[Date "2017.04.23"]
[Round "9"]
[White "Zachary, Matheo"]
[Black "Defromont, Benjamin"]
[Result "1-0"]
[ECO "C06"]
[WhiteElo "2267"]
[BlackElo "1946"]
[Annotator "NA RC"]
[PlyCount "89"]
[EventDate "2017.??.??"]
[EventCountry "FRA"]
[SourceTitle "playchess.com"]
[Source "ChessBase"]
[SourceQuality "1"]
[TimeControl "5400+30"]

{[%evp 8,88,24,32,24,29,37,26,38,46,39,27,44,34,30,33,48,47,18,20,74,74,69,64,53,68,64,64,72,73,59,55,58,69,75,63,73,66,67,62,78,79,71,72,68,32767,72,75,32767,77,68,57,71,58,78,34,61,0,67,65,81,56,81,72,58,32767,83,32767,32767,32,103,106,97,97,110,32767,467,474,881,876,32767,32767,29976]} 1. e4 {[%emt 0:00:00]} e6 {[%emt 0:00:13]} 2. d4 {[%emt 0:00:00]} d5 {[%emt 0:00:09]} 3. Nd2 {[%emt 0:00:00]} Nf6 {[%emt 0:00:11]} 4. e5 {[%emt 0:00:00]} Nfd7 {[%emt 0:00:11]} 5. Bd3 {[%emt 0:00:00]} c5 {[%emt 0:00:11]} 6. c3 {[%emt 0:00:00]} Nc6 {[%emt 0:00:18]} 7. Ne2 {[%emt 0:00:00]} cxd4 {[%emt 0:00:42]} 8. cxd4 {[%emt 0:00:00]} f6 {[%emt 0:00:24]} 9. exf6 {[%emt 0:00:04]} Nxf6 {[%emt 0:00:09]} ({Of course not} 9... gxf6 $6 10. O-O $16) 10. Nf3 {[%emt 0:00:16]} Bd6 {[%emt 0:00:40]} 11. O-O {[%emt 0:00:04]} O-O {[%emt 0:00:24]} 12. Bf4 {[%emt 0:00:07]} Bxf4 {[%emt 0:02:03]} 13. Nxf4 {[%emt 0:00:01]} Qd6 {[%emt 0:02:44] [#]} 14. g3 $1 {[%emt 0:01:36]} e5 {[%emt 0:15:19]} 15. dxe5 {[%emt 0:00:04] C06: French Tarrasch: 3...Nf6 4 e5 Nfd7 5 Bd3 main lines} Nxe5 {[%emt 0:00:07]} 16. Nxe5 {[%emt 0:00:02]} Qxe5 {[%emt 0:00:11]} 17. Qb3 {[%emt 0:00:22] LiveBook: 12 Games} Bd7 {[%emt 0:12:29]} 18. Rfe1 {[%emt 0:01:55]} Qd6 {[%emt 0:02:50]} 19. Bf1 $146 {[%emt 0:00:30]} (19. Rad1 Bc6 20. Re6 Qc5 21. Qc2 Qxc2 22. Bxc2 Rae8 {½-½ (61) Timman,J (2590)-Kuijf,M (2470) Hilversum 1987}) 19... Bc6 {[%emt 0:02:54]} 20. Bg2 {[%emt 0:02:00]} Rfe8 {[%emt 0:02:25]} 21. Red1 {[%emt 0:05:47]} Rad8 {[%emt 0:01:36]} 22. Rd4 {[%emt 0:01:02]} Kh8 {[%emt 0:04:51]} 23. Rad1 {[%emt 0:02:17]} Re5 {[%emt 0:00:41]} 24. h4 {[%emt 0:02:45]} Qe7 {[%emt 0:05:56]} 25. Nd3 {[%emt 0:10:23]} Re6 {[%emt 0:04:46]} 26. Bf3 {[%emt 0:06:57]} Qd6 {[%emt 0:10:02]} 27. Kg2 {[%emt 0:01:35]} Re7 {[%emt 0:01:43]} 28. Nf4 {[%emt 0:01:11]} Re5 {[%emt 0:01:46]} 29. Kh2 {[%emt 0:02:09]} Kg8 {[%emt 0:03:25]} 30. Qd3 {[%emt 0:02:41]} Kh8 $1 {[%emt 0:03:22]} 31. Nh3 {[%emt 0:03:31]} Be8 {[%emt 0:06:54]} 32. Nf4 {[%emt 0:02:34]} (32. Kg2 $14) 32... Bc6 {[%emt 0:02:18]} 33. Kg2 {[%emt 0:00:51]} Qd7 {[%emt 0:02:16]} 34. Qa3 {[%emt 0:06:07]} a6 {[%emt 0:00:42]} 35. Qa5 {[%emt 0:00:36]} Kg8 $14 {[%emt 0:01:47]} 36. R1d2 {[%emt 0:00:32]} Kh8 {[%emt 0:00:39]} ({But not} 36... Re1 $2 37. Rxd5 (37. Nxd5 Rf8 38. R2d3 Qe6 $18) 37... Bxd5 38. Rxd5 Nxd5 39. Bxd5+ Kh8 40. Qxe1 $18) 37. b4 {[%emt 0:00:08]} Kg8 {[%emt 0:02:00]} 38. a4 {[%emt 0:03:33]} Rde8 {[%emt 0:04:06] [#]} (38... Re1 {[#]} 39. b5 $1 {[%mdl 512]} (39. Nxd5 Rf8 40. Nxf6+ Rxf6 41. Bd5+ Bxd5+ 42. Rxd5 Qc6 $16) 39... axb5 40. axb5 $18 (40. Nxd5 Rf8 $16)) ({Better is} 38... Rf8 $14) 39. b5 $1 {[%emt 0:01:19]} ({Much weaker is} 39. Nxd5 $6 Nxd5 40. Rxd5 (40. Bxd5+ $2 Rxd5 41. Rxd5 Re5 $19) 40... Bxd5 41. Rxd5 Rxd5 42. Qxd5+ Qxd5 43. Bxd5+ Kf8 $11) 39... axb5 {[%emt 0:00:44]} 40. axb5 {[%emt 0:00:06]} Bxb5 {[%emt 0:01:03]} 41. Nxd5 {[%emt 0:00:12]} Nxd5 $4 {[%emt 0:04:48]} (41... Qc6 $16 {is more resistant.}) 42. Rxd5 {[%emt 0:03:01]} ({Worse is} 42. Bxd5+ Rxd5 43. Rxd5 Bf1+ 44. Kf3 (44. Kg1 $2 Qh3 45. f4 Qxg3+ 46. Kh1 Qf3+ 47. Kg1 Qg3+ 48. Kh1 Qe1 $19) 44... Qe6 $11) 42... Bc6 {[%emt 0:00:48]} (42... Qc6 $142 43. Rxe5 Rxe5 44. Rd8+ (44. Bxc6 Bxc6+ 45. Rd5 Rxd5 $16) 44... Kf7) 43. Rxe5 {[%emt 0:00:55]} ({Not} 43. Rxd7 Bxf3+ 44. Kxf3 Rxa5 $16) 43... Bxf3+ {[%emt 0:00:27]} 44. Kxf3 {[%emt 0:00:23]} Rxe5 {[%emt 0:00:44]} 45. Qxe5 {[%emt 0:00:09]} 1-0

[Event "FRA-ch Youth 2017"]
[Site "Belfort"]
[Date "2017.04.23"]
[Round "9"]
[White "Cohen Revivo, Shoham"]
[Black "Degraeve, Remy"]
[Result "1-0"]
[ECO "B07"]
[WhiteElo "2221"]
[BlackElo "2126"]
[Annotator "NA RC"]
[PlyCount "99"]
[EventDate "2017.??.??"]
[EventCountry "FRA"]
[SourceTitle "playchess.com"]
[Source "ChessBase"]
[SourceQuality "1"]
[TimeControl "5400+30"]

{[%evp 8,99,42,49,32767,37,45,62,125,51,33,-7,0,36,10,-12,104,104,105,58,48,58,77,52,55,34,83,32767,32767,32767,41,32767,27,51,32767,32767,30,33,101,87,95,102,130,133,32767,69,101,46,190,173,166,172,190,207,231,286,214,32767,32767,32767,32767,370,32767,387,32767,580,508,585,508,458,1625,32767,32767,32767,32767,32767,1315,0,6179,29966,6095,32767,32767,29975,32767,6790,32767,32767,29982,29983,29988,32767,32767,29991]} 1. e4 {[%emt 0:00:15]} d6 {[%emt 0:00:03]} 2. d4 {[%emt 0:00:12]} Nf6 {[%emt 0:00:02]} 3. Nc3 {[%emt 0:00:09]} g6 {[%emt 0:00:02]} 4. Bg5 {[%emt 0:00:30]} Bg7 {[%emt 0:00:05]} 5. Qd2 {[%emt 0:00:45]} Nbd7 {[%emt 0:14:12]} 6. O-O-O {[%emt 0:00:37]} h6 {[%emt 0:10:46] B07: Pirc Defence: Miscellaneous Systems} 7. Bh4 {[%emt 0:00:16] LiveBook: 23 Games} e5 {[%emt 0:11:23]} 8. Nf3 $146 {[%emt 0:02:59]} ({White should try} 8. dxe5 $16 dxe5 9. Nf3 (9. f4 Nxe4 10. Qe1 g5 11. Qxe4 gxh4 12. Nf3 O-O 13. fxe5 Re8 14. Bc4 c6 {1-0 (29) Erdogdu,M (2437)-Muratoglu,S (2069) Istanbul 2013})) 8... exd4 {[%emt 0:07:31]} 9. Qxd4 {[%emt 0:00:19]} O-O {[%emt 0:01:49]} 10. Bc4 {[%emt 0:01:35]} g5 {[%emt 0:05:45]} 11. Bg3 {[%emt 0:01:26]} Ng4 {[%emt 0:00:06] [#]} (11... Nh5 $11 {remains equal.} 12. Qe3 Re8) 12. Qd2 $1 {[%emt 0:02:03]} Nge5 {[%emt 0:02:10]} 13. Nxe5 {[%emt 0:01:37]} (13. Be2 $16) 13... Nxe5 {[%emt 0:00:01]} 14. Bb3 {[%emt 0:00:10]} Ng6 {[%emt 0:00:46]} 15. Rhf1 {[%emt 0:15:33]} Be6 {[%emt 0:04:01]} 16. Kb1 {[%emt 0:07:19]} Bxb3 {[%emt 0:01:50]} 17. axb3 {[%emt 0:00:44]} Be5 {[%emt 0:00:26]} 18. h4 {[%emt 0:01:48]} Bxc3 $1 {[%emt 0:07:16]} 19. bxc3 {[%emt 0:00:06]} gxh4 {[%emt 0:00:32]} 20. Bf4 {[%emt 0:00:06]} Nxf4 {[%emt 0:00:29]} 21. Qxf4 {[%emt 0:00:02]} Qg5 {[%emt 0:00:17]} 22. Qf3 {[%emt 0:00:03]} f5 {[%emt 0:04:41] [#]} (22... Rfe8 $11 {keeps the balance.}) 23. e5 $1 {[%emt 0:05:51]} dxe5 {[%emt 0:02:32]} 24. Qxb7 {[%emt 0:00:23]} Qe7 {[%emt 0:01:41] [#]} 25. Qc6 $1 {[%emt 0:00:21]} Qf6 {[%emt 0:03:33]} 26. Qxc7 {[%emt 0:04:35]} Rac8 {[%emt 0:01:52]} 27. Qb7 {[%emt 0:00:07]} Rfd8 {[%emt 0:01:40]} (27... e4 $14) 28. Rxd8+ {[%emt 0:15:13]} ({Much less strong is} 28. Qxa7 $6 Rxc3 29. Rxd8+ Qxd8 $14) 28... Rxd8 {[%emt 0:00:09]} 29. Qxa7 {[%emt 0:03:41]} Qc6 {[%emt 0:01:11]} 30. Qe7 {[%emt 0:00:08]} Ra8 {[%emt 0:00:45]} 31. Rd1 {[%emt 0:00:28]} ({Not} 31. Qxh4 Qxc3 32. Qg3+ Qxg3 33. fxg3 Rf8 $16) ({But not} 31. Qxe5 $2 Qa6 32. Qd5+ Kg7 33. Qxa8 Qxa8 $19) 31... Qa6 {[%emt 0:10:53]} 32. Rd8+ {[%emt 0:01:29]} Rxd8 {[%emt 0:00:01]} 33. Qxd8+ {[%emt 0:00:02]} Kg7 {[%emt 0:00:11]} 34. Qxh4 {[%emt 0:01:14]} Qf1+ {[%emt 0:00:31]} 35. Kb2 {[%emt 0:00:16]} Qxg2 {[%emt 0:00:06]} 36. Qe7+ {[%emt 0:01:25]} Kg6 {[%emt 0:00:10]} 37. Qe6+ {[%emt 0:00:14]} ({Not} 37. Qxe5 Qxf2 38. c4 Qb6 $18) 37... Kh5 {[%emt 0:02:10]} 38. Qxf5+ {[%emt 0:00:15]} Kh4 {[%emt 0:01:54]} 39. Qf6+ {[%emt 0:00:55]} Kg4 {[%emt 0:00:09]} 40. Qxh6 {[%emt 0:00:57]} Qxf2 $11 {[%emt 0:00:14]} 41. Qg6+ {[%emt 0:00:14]} Kh4 {[%emt 0:00:38]} 42. Qh6+ $2 {[%emt 0:01:46]} Kg3 $2 {[%emt 0:00:25]} 43. Qg7+ {[%emt 0:00:10]} Kh3 {[%emt 0:00:10]} (43... Kf3 44. Qxe5) 44. Qxe5 {[%emt 0:00:38]} Qb6 {[%emt 0:00:13]} 45. Qd4 {[%emt 0:00:50]} Qb7 {[%emt 0:00:11]} 46. c4 {[%emt 0:00:22]} (46. b4 $142 Kg2 47. Kb3 Qb8 48. c4 Qg3+ 49. Qd3 Qc7 50. Qd5+ Kh2 51. c5) 46... Qc6 {[%emt 0:00:14]} 47. c5 {[%emt 0:02:12]} Qb7 {[%emt 0:00:25]} 48. c6 {[%emt 0:00:59]} Qa8 {[%emt 0:00:45]} 49. c7 {[%emt 0:00:34]} Kg2 {[%emt 0:00:05]} 50. Qd8 {[%emt 0:00:59]} 1-0

[Event "FRA-ch Youth 2017"]
[Site "Belfort"]
[Date "2017.04.23"]
[Round "9"]
[White "Tomasi, Albert"]
[Black "Harutyunyan, Ruben"]
[Result "0-1"]
[ECO "C11"]
[WhiteElo "2176"]
[BlackElo "2218"]
[Annotator "NA"]
[PlyCount "85"]
[EventDate "2017.??.??"]
[EventCountry "FRA"]
[SourceTitle "playchess.com"]
[Source "ChessBase"]
[SourceQuality "1"]
[TimeControl "5400+30"]

{[%evp 19,85,46,42,52,32767,32767,57,47,58,30,32,-2,-14,-10,0,0,15,0,-7,0,32767,0,32767,32767,25,32767,-17,-60,8,0,0,0,72,32767,32767,67,104,99,87,99,100,70,15,-28,-37,-231,32767,32767,32767,32767,32767,-321,32767,32767,32767,-268,32767,32767,32767,32767,32767,-5069,32767,-172,-161,-163,-164,-29972]} 1. e4 {[%emt 0:00:00]} e6 {[%emt 0:00:02]} 2. d4 {[%emt 0:00:00]} d5 {[%emt 0:00:01]} 3. Nc3 {[%emt 0:00:08]} Nf6 {[%emt 0:00:03]} 4. Bg5 {[%emt 0:00:20]} dxe4 {[%emt 0:00:01]} 5. Nxe4 {[%emt 0:00:20]} Nbd7 {[%emt 0:00:01]} 6. Nxf6+ {[%emt 0:02:54]} Nxf6 {[%emt 0:00:03]} 7. Nf3 {[%emt 0:00:11]} Be7 {[%emt 0:00:04]} 8. Bd3 {[%emt 0:01:05]} h6 {[%emt 0:00:05]} 9. Bh4 {[%emt 0:02:31]} c5 {[%emt 0:00:17]} 10. dxc5 {[%emt 0:05:48]} Qa5+ {[%emt 0:01:05] C10: French with 3 Nc3: Unusual Black 3rd moves and 3...dxe4} 11. c3 {[%emt 0:01:11]} Qxc5 {[%emt 0:00:06]} 12. Qe2 {[%emt 0:04:22]} a6 {[%emt 0:05:49]} (12... Bd7 13. Ne5 Bc6 14. O-O O-O 15. Rad1 a5 16. Kh1 Rfd8 17. f4 Be8 18. f5 {1-0 (42) Palac,M (2623)-Kosic,D (2517) Baku 2016}) 13. O-O {[%emt 0:05:16] LiveBook: 5 Games} Nh5 {[%emt 0:11:51]} 14. b4 {[%emt 0:17:09]} Qc7 {[%emt 0:01:11]} 15. Bb5+ $146 {[%emt 0:01:42]} (15. Bxe7 Kxe7 16. Ne5 Nf6 17. c4 {½-½ (25) Todorovic,G (2511)-Kosic,D (2515) Kopaonik 2005}) 15... axb5 {[%emt 0:13:29]} 16. Qxb5+ {[%emt 0:00:06]} Bd7 {[%emt 0:00:04]} 17. Qxh5 {[%emt 0:00:07]} Bxh4 {[%emt 0:11:35]} 18. Qxh4 {[%emt 0:00:23]} Qxc3 {[%emt 0:00:12]} 19. Rac1 {[%emt 0:10:26]} Qf6 {[%emt 0:02:01]} 20. Qe4 {[%emt 0:00:23]} O-O {[%emt 0:09:30]} 21. Qxb7 {[%emt 0:00:18]} Rfd8 {[%emt 0:00:35]} 22. Rfd1 {[%emt 0:05:39]} Qb2 $1 {[%emt 0:06:52]} 23. Ne1 {[%emt 0:15:27]} Ba4 {[%emt 0:10:32]} ({But not} 23... Rxa2 $2 24. Rc2 Qb3 25. Rxd7 $18) 24. Rxd8+ {[%emt 0:02:32]} Rxd8 {[%emt 0:00:28]} 25. Rc8 {[%emt 0:00:06]} Rxc8 {[%emt 0:00:53]} (25... Re8 $1 $11) 26. Qxc8+ {[%emt 0:00:09]} Kh7 {[%emt 0:00:03]} 27. Qc4 {[%emt 0:01:09]} Qa1 {[%emt 0:06:48] [#]} 28. Kf1 $1 {[%emt 0:14:37]} Qe5 {[%emt 0:05:25]} 29. f4 {[%emt 0:05:58]} Qb2 {[%emt 0:10:54]} 30. Nd3 {[%emt 0:02:25]} Qd2 $1 {[%emt 0:02:15]} 31. Ne5 {[%emt 0:01:02]} (31. h3 $14) 31... Bc2 {[%emt 0:01:03]} 32. h3 $2 {[%emt 0:01:42]} (32. Kg1 $1 $11) 32... f6 {[%emt 0:00:39]} 33. Qxe6 {[%emt 0:00:30]} fxe5 {[%emt 0:00:58]} 34. Qxe5 {[%emt 0:00:05]} Qxb4 {[%emt 0:00:34]} 35. Kf2 Bb1 {[%emt 0:00:52]} 36. g4 {[%emt 0:01:25]} Qa3 {[%emt 0:00:57]} 37. Qe3 {[%emt 0:00:30]} Qxe3+ {[%emt 0:00:34]} 38. Kxe3 {[%emt 0:00:04]} Bxa2 {[%emt 0:00:03]} 39. f5 {[%emt 0:00:15]} Bb1 {[%emt 0:00:37]} 40. Kf4 {[%emt 0:00:20]} g5+ {[%emt 0:00:53]} 41. fxg6+ {[%emt 0:00:29]} Kxg6 {[%emt 0:00:04]} 42. h4 {[%emt 0:00:59]} Bc2 $19 {[%emt 0:00:00]} 43. Kg3 $2 {[%emt 0:00:45]} (43. Ke5 $17) 0-1

[Event "FRA-ch Youth 2017"]
[Site "Belfort"]
[Date "2017.04.23"]
[Round "9"]
[White "Daeschler, Florian"]
[Black "Sarafian, Thomas"]
[Result "1-0"]
[ECO "B52"]
[WhiteElo "2124"]
[BlackElo "1892"]
[Annotator "NA RC"]
[PlyCount "72"]
[EventDate "2017.??.??"]
[EventCountry "FRA"]
[SourceTitle "playchess.com"]
[Source "ChessBase"]
[SourceQuality "1"]
[TimeControl "5400+30"]

{[%evp 8,71,20,18,28,47,45,53,66,32767,109,93,32767,111,32767,32767,74,0,18,19,7,0,9,16,9,17,136,127,138,56,83,38,91,74,230,32767,32767,32767,32767,143,170,32767,32767,32767,115,208,227,410,347,0,75,36,0,32767,32767,0,0,0,173,139,167,152,32767,32767,754,606]} 1. Nf3 {[%emt 0:02:41]} c5 {[%emt 0:00:20]} 2. e4 {[%emt 0:00:24]} d6 {[%emt 0:00:15]} 3. Bb5+ {[%emt 0:00:03]} Bd7 {[%emt 0:02:27]} 4. Bxd7+ {[%emt 0:00:08]} Nxd7 {[%emt 0:00:12]} 5. O-O {[%emt 0:00:10]} g6 {[%emt 0:01:46]} 6. c3 {[%emt 0:00:18]} Ngf6 {[%emt 0:03:35]} 7. Qe2 {[%emt 0:01:45] LiveBook: 25 Games} Bg7 {[%emt 0:03:10]} 8. d4 {[%emt 0:00:20]} O-O {[%emt 0:04:57] B52: Sicilian: Moscow Variation with 3...Bd7} (8... Qc7 $14) 9. e5 {[%emt 0:02:08]} dxe5 {[%emt 0:11:28]} 10. dxe5 {[%emt 0:00:09]} Nd5 {[%emt 0:01:26]} 11. Rd1 $146 {[%emt 0:05:51]} (11. e6 N7b6 12. exf7+ Rxf7 13. Ng5 Rf6 14. Re1 Nc7 15. Nd2 Qd5 16. Nb3 Rf5 17. Nf3 Nc4 18. Nbd2 Ne5 19. Nxe5 Rxe5 20. Qf1 Rd8 21. Rxe5 Bxe5 22. Nf3 Bf6 23. Be3 {½-½ (23) Freeman,M (2397)-Rotova,M (2067) ICCF email 2001}) 11... e6 {[%emt 0:02:31]} 12. Bg5 {[%emt 0:01:53]} (12. c4 $16 Nb4 13. Nc3) 12... Qc7 {[%emt 0:04:19]} 13. c4 {[%emt 0:01:06]} Nb4 $1 {[%emt 0:02:09]} 14. Be7 {[%emt 0:01:58]} Nxe5 {[%emt 0:03:04]} 15. Bxf8 {[%emt 0:05:26]} Nxf3+ {[%emt 0:00:18]} 16. Qxf3 {[%emt 0:00:25]} Bxb2 {[%emt 0:01:56]} (16... Rxf8 $11 17. Nc3 Nc6) 17. Bd6 {[%emt 0:01:26]} Qb6 {[%emt 0:00:29] [#]} 18. a3 {[%emt 0:10:32]} ({Weaker is} 18. Bxc5 Qxc5 19. Qxb7 Rf8 $15) (18. Nc3 $1 $16 {[%cal Rc3a4]} Bxa1 19. Na4 (19. Rxa1 Qxd6 20. Qxb7 Rd8 $19)) 18... Bxa1 {[%emt 0:03:55]} 19. axb4 {[%emt 0:00:08]} cxb4 {[%emt 0:00:30]} 20. c5 {[%emt 0:01:35]} Qb5 {[%emt 0:01:24]} (20... Qc6 $16) 21. Nd2 {[%emt 0:07:41]} Bg7 {[%emt 0:01:59]} 22. Ne4 {[%emt 0:00:07]} a5 {[%emt 0:07:57]} 23. Ng5 {[%emt 0:02:43]} Qd7 {[%emt 0:01:25]} 24. Ne4 {[%emt 0:04:01]} Qc6 {[%emt 0:07:35]} 25. Nf6+ {[%emt 0:04:58]} Kh8 {[%emt 0:00:14]} 26. Qf4 {[%emt 0:00:06]} b3 {[%emt 0:05:02]} 27. Bb8 {[%emt 0:03:12]} Qc8 {[%emt 0:00:53] [#]} 28. Bc7 $2 {[%emt 0:09:14]} ({White must play} 28. Qh4 $1 $18 {[%csl Gf6][%cal Rh4h7]} h6 29. Be5) 28... a4 {[%emt 0:03:26]} (28... g5 $11 29. Qg3 (29. Qe5 a4 $17) 29... Bxf6) 29. Nd7 {[%emt 0:05:35]} a3 $1 {[%emt 0:04:34]} ({Not} 29... g5 $2 30. Qg3 Qg8 31. Nb6 $16 (31. Qxg5 a3 $14)) 30. Nb6 {[%emt 0:10:55]} a2 {[%emt 0:01:28]} 31. Be5 $1 {[%emt 0:02:09]} (31. Nxc8 a1=Q 32. Qd2 h5 $19) 31... Qxc5 {[%emt 0:00:39]} 32. Qa4 $1 {[%emt 0:09:03]} Bxe5 {[%emt 0:02:58]} (32... Rg8 $11 {and Black has nothing to worry.} 33. Bxg7+ Kxg7 34. Qxb3 e5) 33. Qxa8+ {[%emt 0:02:09]} Kg7 {[%emt 0:00:04]} 34. Nd7 {[%emt 0:00:17]} Qb4 {[%emt 0:04:00]} 35. Nxe5 {[%emt 0:00:08]} Qc5 $18 36. Nd7 Qh5 1-0

[Event "FRA-ch Youth 2017"]
[Site "Belfort"]
[Date "2017.04.23"]
[Round "9"]
[White "David, Bogdan-Emanuel"]
[Black "Maache, Jawad"]
[Result "1/2-1/2"]
[ECO "B01"]
[WhiteElo "2099"]
[BlackElo "2119"]
[Annotator "NA RC"]
[PlyCount "148"]
[EventDate "2017.??.??"]
[EventCountry "FRA"]
[SourceTitle "playchess.com"]
[Source "ChessBase"]
[SourceQuality "1"]
[TimeControl "5400+30"]

{[%evp 8,147,62,38,72,32767,45,32767,32767,32767,32767,6,32767,32767,32767,-22,-16,-22,-14,-35,-21,-25,-33,32767,32767,32767,32767,-77,-80,-85,-77,-143,-134,-137,-163,32767,-113,32767,-125,32767,32767,32767,32767,-205,32767,-122,-144,32767,-196,-206,-179,-188,32767,32767,-128,-137,-139,32767,-143,-143,32767,32767,32767,32767,-75,32767,32767,32767,32767,32767,32767,-131,32767,32767,0,32767,32767,0,32767,0,32767,32767,0,32767,0,32767,0,0,32767,7,121,32767,115,110,120,113,32767,130,115,127,129,111,103,66,118,94,228,97,162,32767,56,32767,32767,56,47,41,56,33,32767,8,0,8,0,0,0,0,32767,0,0,0,0,0,32767,0,0,32767,0,0,0,0,0,0]} 1. e4 {[%emt 0:00:00]} d5 {[%emt 0:00:04]} 2. exd5 {[%emt 0:00:04]} Qxd5 {[%emt 0:00:07]} 3. Nc3 {[%emt 0:00:43]} Qa5 {[%emt 0:00:07]} 4. d4 {[%emt 0:00:57]} Nf6 {[%emt 0:00:06]} 5. Bc4 {[%emt 0:01:22]} Bg4 {[%emt 0:00:09]} 6. f3 {[%emt 0:02:26]} Bf5 {[%emt 0:00:07]} 7. Bd2 {[%emt 0:03:27] B01: Scandinavian Defence} Qb6 {[%emt 0:00:07]} 8. Nge2 {[%emt 0:03:07]} e6 {[%emt 0:00:25]} 9. g4 {[%emt 0:06:02]} Bg6 {[%emt 0:00:06]} 10. h4 {[%emt 0:01:53]} h6 11. Nf4 {[%emt 0:05:49] LiveBook: 6 Games} Nc6 $1 {[%emt 0:26:03]} 12. Nxg6 {[%emt 0:14:57]} fxg6 {[%emt 0:00:05]} 13. Na4 {[%emt 0:06:13]} Qxd4 {[%emt 0:00:18]} 14. Qe2 {[%emt 0:00:43]} Qe5 $1 {[%emt 0:12:55]} 15. O-O-O $146 {[%emt 0:11:47]} (15. Bb5 Qxe2+ 16. Kxe2 {½-½ (61) Berg,E (2540)-Kovacevic,B (2463) Kusadasi 2006}) 15... Qxe2 {[%emt 0:01:03]} 16. Bxe2 {[%emt 0:00:02]} Bd6 {[%emt 0:12:48]} 17. Be3 {[%emt 0:16:00]} Nd5 {[%emt 0:01:22]} 18. Bf2 {[%emt 0:01:43]} O-O-O {[%emt 0:05:44]} 19. Bd3 {[%emt 0:07:25]} (19. Rhe1 $142) 19... Ne5 {[%emt 0:05:35]} 20. Rhe1 {[%emt 0:07:01]} Rhf8 {[%emt 0:07:28]} 21. Nc5 {[%emt 0:03:19]} Nxf3 {[%emt 0:12:46]} ({Black should try} 21... Rxf3 $19 22. Bg1 Nxd3+ 23. Rxd3 Bf4+ 24. Kd1 Rxd3+ 25. Nxd3 Bg3 26. Rxe6 Bxh4) 22. Rxe6 {[%emt 0:01:30]} Nf4 {[%emt 0:02:44]} 23. Re4 {[%emt 0:01:29]} Nxd3+ {[%emt 0:02:35]} 24. Nxd3 {[%emt 0:01:52]} Rde8 {[%emt 0:00:34]} 25. Rc4 {[%emt 0:01:07]} (25. Rxe8+ $17 Rxe8 26. Rh1) 25... Ne5 {[%emt 0:02:51]} 26. Nxe5 {[%emt 0:01:13]} Bxe5 {[%emt 0:00:01]} 27. Bxa7 {[%emt 0:00:35]} Rf4 {[%emt 0:00:37]} 28. Bd4 {[%emt 0:00:35]} Rxg4 {[%emt 0:01:13]} 29. Ra4 {[%emt 0:00:25]} Bxd4 {[%emt 0:01:18]} 30. Raxd4 {[%emt 0:00:01]} Rxd4 {[%emt 0:00:28]} 31. Rxd4 {[%emt 0:00:01]} Re5 {[%emt 0:00:41]} 32. Kd2 {[%emt 0:00:55]} g5 {[%emt 0:01:49]} 33. Rg4 {[%emt 0:00:15]} gxh4 {[%emt 0:02:56]} 34. Rxg7 {[%emt 0:00:24]} Rh5 {[%emt 0:00:39]} 35. Rg2 {[%emt 0:00:01]} Kd7 {[%emt 0:00:23]} 36. Ke3 {[%emt 0:00:12]} Ke6 {[%emt 0:01:06]} 37. Kf4 {[%emt 0:00:24]} Kf6 {[%emt 0:00:37]} 38. Rh2 {[%emt 0:00:20]} Rc5 {[%emt 0:00:38]} 39. b3 {[%emt 0:00:30]} ({White should try} 39. Kg4 $15) 39... Rb5 {[%emt 0:00:35]} 40. Rxh4 {[%emt 0:00:29]} Kg6 {[%emt 0:00:30]} 41. Rh2 {[%emt 0:01:35]} h5 {[%emt 0:00:19]} 42. Re2 {[%emt 0:00:21]} Kf6 {[%emt 0:00:22]} 43. Re8 {[%emt 0:00:23]} c6 {[%emt 0:00:57]} 44. Rh8 {[%emt 0:01:03]} Rf5+ {[%emt 0:00:24]} 45. Kg3 {[%emt 0:00:31]} Rg5+ {[%emt 0:00:22]} 46. Kh3 {[%emt 0:00:44]} Rc5 {[%emt 0:00:35]} 47. c4 {[%emt 0:00:40]} b5 {[%emt 0:00:37]} 48. Rc8 {[%emt 0:00:23]} Ke6 {[%emt 0:00:39]} (48... b4 $11) 49. cxb5 {[%emt 0:00:07]} Rxb5 {[%emt 0:00:28]} 50. Rxc6+ {[%emt 0:00:01]} Kd5 {[%emt 0:00:03]} 51. Rc4 {[%emt 0:00:25]} Ra5 {[%emt 0:00:28]} 52. a4 {[%emt 0:00:01]} Kd6 {[%emt 0:00:21]} 53. Kh4 {[%emt 0:01:09]} Kd7 {[%emt 0:00:21]} 54. Rb4 {[%emt 0:00:54]} Rd5 {[%emt 0:00:43]} 55. Kg3 {[%emt 0:00:40]} ({But not} 55. Rb5 $6 Rxb5 56. axb5 Kc7 $11) 55... Rg5+ {[%emt 0:00:47]} 56. Kf3 {[%emt 0:00:13]} Rc5 {[%emt 0:00:22] [#]} (56... Kc6 $16 {keeps fighting.} 57. Kf2 Rg8 58. Rc4+ Kb6) 57. Ke3 {[%emt 0:00:56]} (57. Rd4+ $1 $18 {and White stays clearly on top.} Ke6 58. b4) 57... h4 {[%emt 0:00:28]} 58. Kf3 {[%emt 0:00:50]} h3 {[%emt 0:00:35]} 59. Kg3 {[%emt 0:00:13]} Rc3+ {[%emt 0:00:06]} 60. Kh2 {[%emt 0:00:04]} Kd6 {[%emt 0:00:19]} 61. Rb5 {[%emt 0:00:08]} Kc6 {[%emt 0:00:24]} 62. b4 {[%emt 0:00:58]} Ra3 {[%emt 0:00:34]} 63. Rc5+ {[%emt 0:00:07]} Kb6 {[%emt 0:00:41]} 64. a5+ {[%emt 0:00:37]} Ka6 {[%emt 0:00:46]} 65. Rc6+ {[%emt 0:00:39]} Kb7 {[%emt 0:00:36]} 66. Rh6 {[%emt 0:01:16]} Rb3 {[%emt 0:00:22]} 67. Rb6+ {[%emt 0:00:34]} Ka7 $1 {[%emt 0:01:05]} 68. Kh1 {[%emt 0:00:29]} Rb2 {[%emt 0:00:27]} 69. Kg1 {[%emt 0:00:36]} Rb1+ {[%emt 0:00:17]} 70. Kh2 {[%emt 0:00:07]} Rb3 {[%emt 0:00:05]} 71. b5 {[%emt 0:00:24]} Ra3 {[%emt 0:00:13]} 72. Ra6+ {[%emt 0:00:37]} Kb7 {[%emt 0:00:07]} 73. Rh6 {[%emt 0:00:20]} Rxa5 $11 {[%emt 0:00:13]} 74. Kxh3 {[%emt 0:00:05]} Rxb5 {[%emt 0:00:07]} 1/2-1/2